[Event "44th Chess Olympiad Open 2022"]
[Site "Chennai"]
[Date "2022.08.03"]
[Round "6.68"]
[White "Martyr, Reginald"]
[Black "Chiwambo Stansford"]
[Result "1-0"]
[WhiteElo "2194"]
[BlackElo "1913"]
[Annotator "TA"]
[PlyCount "99"]
[EventDate "2022.??.??"]
[TimeControl "60"]

{[%evp 16,99,12,8,23,0,34,0,27,0,37,10,12,0,14,0,9,0,72,66,106,58,107,103,104,
101,210,196,181,205,419,405,402,400,400,402,402,393,459,458,456,453,441,383,
396,378,650,622,633,548,630,621,946,952,1248,1219,994,642,1521,1451,1943,1755,
7977,6712,29959,29962,29961,29964,29961,29960,29967,29967,29966,29968,29968,
29969,29969,29969,29973,29971,29976,29976,29974,29975,12835,3856]} 1. Nf3 {
[%emt 0:00:08]} d5 {[%emt 0:00:12]} 2. c4 {[%emt 0:00:42]} e6 {[%emt 0:00:16]}
3. g3 {[%emt 0:00:19]} Nf6 {[%emt 0:00:38]} 4. Bg2 {[%emt 0:00:12]} Be7 {
[%emt 0:00:39]} 5. O-O {[%emt 0:00:05]} O-O {[%emt 0:00:14]} 6. b3 {[%emt 0:00:
00]} Nbd7 {[%emt 0:06:52]} 7. Bb2 {[%emt 0:05:21]} b6 {[%emt 0:00:45]} 8. Nc3 {
[%emt 0:12:31]} Bb7 {[%emt 0:00:23]} 9. e3 {[%emt 0:00:59]} Re8 {[%emt 0:03:31]
A14: English Opening: 1...e6 with b3 by White.} 10. d4 {[%emt 0:02:53]} Rc8 {
[%emt 0:05:01]} 11. Qe2 {[%emt 0:14:21]} (11. Ne5 {with more complications.} c6
12. f4 Bb4 13. Rc1) 11... c5 {[%emt 0:04:22] [#] The position is equal.} 12.
Rfc1 $146 {[%emt 0:10:07]} ({Predecessor:} 12. Rac1 Nf8 13. Ne5 Bd6 14. Nb5 Bb8
15. Rcd1 a6 16. Nc3 Qe7 17. Rd2 Red8 18. Rfd1 {1-0 (42) Tsuchie,D (1287)-De
Souza,A (1473) Osasco 2019}) 12... Qc7 {[%emt 0:00:53]} 13. dxc5 {[%emt 0:00:
00]} bxc5 {[%emt 0:00:34]} 14. cxd5 {[%emt 0:05:44]} exd5 {[%emt 0:00:23]} 15.
Na4 {[%emt 0:04:42]} Qb8 {[%emt 0:06:32]} 16. Rc2 {[%emt 0:07:48]} a6 {[%emt 0:
00:00]} (16... Nb6 $11) 17. Rac1 $16 {[%emt 0:00:21]} Rc6 {[%emt 0:03:46]
White stays focused until the end.} 18. Ba3 {[%emt 0:04:14]} ({White should try
} 18. Ne1 $16) 18... Rec8 {[%emt 0:00:55]} (18... d4 $14) 19. Bh3 {[%emt 0:00:
00]} R8c7 {[%emt 0:00:33]} 20. Bb2 {[%emt 0:06:59] White is more active.} Qf8 {
[%emt 0:05:23]} (20... Bd6 $16) 21. Ne5 {[%emt 0:05:06]} Nxe5 {[%emt 0:02:13]}
22. Bxe5 {[%emt 0:00:02]} Bd6 {[%emt 0:03:57]} (22... Bc8) 23. Bxf6 $18 {
[%emt 0:00:06]} gxf6 {[%emt 0:00:30] [#]} 24. Bd7 $1 {[%emt 0:01:39]} Qe7 {
[%emt 0:03:58]} (24... Rxd7 25. Qg4+) 25. Bxc6 {[%emt 0:01:46]} Rxc6 {[%emt 0:
00:09]} 26. Qg4+ {[%emt 0:01:13]} Kf8 {[%emt 0:00:56]} 27. Qf5 {[%emt 0:00:14]
[%csl Yd5,Yh7]} c4 {[%emt 0:03:33]} 28. bxc4 {[%emt 0:06:46]} dxc4 {[%emt 0:05:
13]} 29. Rxc4 {[%emt 0:00:38]} Rxc4 {[%emt 0:00:21]} 30. Rxc4 {[%emt 0:00:03] 
[#] aiming for Nb6.} h5 $2 {[%emt 0:02:01]} (30... Qe6 31. Qxe6 fxe6) 31. Nb6 {
[%emt 0:00:34]} Be5 {[%emt 0:02:01]} 32. Nd7+ {[%emt 0:00:32]} Ke8 {[%emt 0:00:
30]} 33. Nxe5 {[%emt 0:00:25]} fxe5 {[%emt 0:00:13] Endgame KQR-KQB} 34. e4 {
[%emt 0:01:18]} Qd6 {[%emt 0:04:59]} 35. Qxh5 {[%emt 0:01:49]} Kf8 {[%emt 0:00:
59]} 36. Qe2 {[%emt 0:00:43]} f5 {[%emt 0:00:00]} 37. Qf3 {[%emt 0:01:22]} f4 {
[%emt 0:02:43]} 38. gxf4 {[%emt 0:00:50]} exf4 {[%emt 0:00:05]} 39. Qh5 {
[%emt 0:00:32] Intending e5 and mate.} Kg7 {[%emt 0:01:09]} 40. Rc5 {[%emt 0:
01:38]} Bxe4 {[%emt 0:03:47]} 41. Qe5+ {[%emt 0:30:15]} Qxe5 {[%emt 0:00:51]}
42. Rxe5 {[%emt 0:00:03] KR-KB} Bd3 {[%emt 0:30:19]} 43. Kg2 {[%emt 0:01:30]}
Kf6 {[%emt 0:00:17]} 44. Ra5 {[%emt 0:00:00]} Be2 {[%emt 0:00:00]} 45. f3 {
[%emt 0:00:00]} Kg6 {[%emt 0:00:00]} 46. h4 {[%emt 0:00:00]} Bb5 {[%emt 0:00:
00]} 47. Kf2 {[%emt 0:00:00]} Kh6 {[%emt 0:00:00]} 48. a4 {[%emt 0:00:00]} Bd3
{[%emt 0:00:00]} 49. Rd5 {[%emt 0:00:00]} Bc2 {[%emt 0:00:00]} 50. Rd4 {
[%emt 0:00:00] Weighted Error Value: White=0.26 (precise) /Black=0.59} (50. a5
$142 Kg6 51. Rd6+ Kh5 52. Rxa6 Kxh4 53. Rd6 Bf5 54. Rd8 Kg5 55. a6) 1-0

[Event "44th Chess Olympiad Open 2022"]
[Site "Chennai"]
[Date "2022.08.03"]
[Round "6.68"]
[White "Nyambalo, Joseph Xavier"]
[Black "Sixtus Gabriel"]
[Result "1/2-1/2"]
[WhiteElo "1981"]
[BlackElo "1787"]
[Annotator "NA RC"]
[PlyCount "84"]
[EventDate "2022.??.??"]
[TimeControl "60"]

1. c4 {[%emt 0:00:02]} g6 {[%emt 0:00:11]} 2. g3 {[%emt 0:00:08]} Bg7 {[%emt 0:
00:00]} 3. Bg2 {[%emt 0:00:05]} Nf6 {[%emt 0:00:15]} 4. Nc3 {[%emt 0:00:04]}
O-O {[%emt 0:01:41]} 5. Nf3 {[%emt 0:00:05]} d5 {[%emt 0:01:10]} 6. cxd5 {
[%emt 0:00:54]} Nxd5 {[%emt 0:00:26]} 7. Qb3 {[%emt 0:00:56]} Nb6 {[%emt 0:00:
00]} 8. O-O {[%emt 0:01:03]} Nc6 {[%emt 0:01:10]} 9. d3 {[%emt 0:02:04]} e5 {
[%emt 0:03:01]} 10. Be3 {[%emt 0:00:48]} Be6 {[%emt 0:01:34]} 11. Qd1 {[%emt 0:
00:00]} Qd7 {[%emt 0:00:57]} 12. Ng5 {[%emt 0:01:44]} Nd5 {[%emt 0:04:44]} 13.
Nxe6 {[%emt 0:04:40]} fxe6 {[%emt 0:02:17]} 14. Bd2 {[%emt 0:05:48]} Nce7 {
[%emt 0:02:28]} 15. Ne4 {[%emt 0:00:45]} Qb5 {[%emt 0:06:27]} 16. b4 {[%emt 0:
00:00]} b6 {[%emt 0:03:05]} 17. a4 {[%emt 0:00:24]} Qd7 {[%emt 0:05:01]} 18.
Rb1 {[%emt 0:05:04]} c6 {[%emt 0:00:17]} 19. Qb3 {[%emt 0:03:05]} Rac8 {
[%emt 0:01:46]} 20. Rfc1 {[%emt 0:00:44]} h6 {[%emt 0:01:58]} 21. a5 {[%emt 0:
00:00]} Nf6 {[%emt 0:03:24]} 22. axb6 {[%emt 0:02:45]} axb6 {[%emt 0:02:24]}
23. Rc4 {[%emt 0:10:04]} Nxe4 {[%emt 0:07:01]} 24. Bxe4 {[%emt 0:00:20]} Kf7 {
[%emt 0:01:21]} 25. Rbc1 {[%emt 0:01:09]} Rc7 {[%emt 0:05:27]} 26. Qd1 {
[%emt 0:05:15]} Rfc8 {[%emt 0:05:17]} 27. Be3 {[%emt 0:02:56]} b5 {[%emt 0:00:
00]} 28. R4c2 {[%emt 0:04:10]} Nd5 {[%emt 0:03:30]} 29. Bc5 {[%emt 0:00:00]}
Bf8 {[%emt 0:00:23]} 30. Qd2 {[%emt 0:00:00]} Bxc5 {[%emt 0:01:15]} 31. Rxc5 {
[%emt 0:00:00]} Kg7 {[%emt 0:03:47]} 32. d4 {[%emt 0:00:00]} Nb6 {[%emt 0:00:
00]} 33. Qd3 {[%emt 0:08:53]} Qxd4 {[%emt 0:03:10]} 34. Qxd4 {[%emt 0:00:32]}
exd4 {[%emt 0:00:35]} 35. Rxc6 {[%emt 0:00:35]} Rxc6 {[%emt 0:03:12]} 36. Rxc6
{[%emt 0:00:10]} Rxc6 {[%emt 0:00:31]} 37. Bxc6 {[%emt 0:00:01]} Kf6 {[%emt 0:
00:00]} 38. f4 {[%emt 0:00:29]} g5 {[%emt 0:05:14]} 39. fxg5+ {[%emt 0:01:21]}
hxg5 {[%emt 0:00:34]} 40. Kf2 {[%emt 0:01:36]} g4 {[%emt 0:09:47]} 41. e3 {
[%emt 0:36:56]} dxe3+ {[%emt 0:32:38]} 42. Kxe3 {[%emt 0:00:21]} Ke5 {[%emt 0:
00:00]} 1/2-1/2

[Event "44th Chess Olympiad Open 2022"]
[Site "Chennai"]
[Date "2022.08.03"]
[Round "6.68"]
[White "Mathurin, Nathaniel"]
[Black "Matola Ernest"]
[Result "1-0"]
[WhiteElo "1722"]
[BlackElo "1964"]
[Annotator "NA RC"]
[PlyCount "63"]
[EventDate "2022.??.??"]
[TimeControl "60"]

1. d4 {[%emt 0:00:03]} Nf6 {[%emt 0:00:54]} 2. Nf3 {[%emt 0:00:28]} g6 {
[%emt 0:00:11]} 3. c4 {[%emt 0:00:05]} Bg7 {[%emt 0:00:13]} 4. Nc3 {[%emt 0:00:
00]} O-O {[%emt 0:00:29]} 5. e4 {[%emt 0:00:12]} d6 {[%emt 0:00:11]} 6. Be2 {
[%emt 0:00:05]} Nbd7 {[%emt 0:00:46]} 7. O-O {[%emt 0:01:37]} e5 {[%emt 0:00:
00]} 8. Be3 {[%emt 0:02:02]} Re8 {[%emt 0:02:01]} 9. d5 {[%emt 0:00:16]} Nc5 {
[%emt 0:01:36]} 10. Nd2 {[%emt 0:00:15]} a5 {[%emt 0:01:28]} 11. a3 {[%emt 0:
00:00]} h5 {[%emt 0:02:11]} 12. f3 {[%emt 0:01:31]} Nh7 {[%emt 0:00:34]} 13. b4
{[%emt 0:01:37]} Nd7 {[%emt 0:00:31]} 14. c5 {[%emt 0:00:35]} Ndf8 {[%emt 0:00:
00]} 15. cxd6 {[%emt 0:01:25]} cxd6 {[%emt 0:01:34]} 16. Nc4 {[%emt 0:02:11]}
axb4 {[%emt 0:01:40]} 17. Nb5 {[%emt 0:00:01]} Nd7 {[%emt 0:10:13]} 18. axb4 {
[%emt 0:01:35]} Rxa1 {[%emt 0:00:38]} 19. Qxa1 {[%emt 0:00:01]} f5 {[%emt 0:00:
00]} 20. exf5 {[%emt 0:00:35]} gxf5 {[%emt 0:00:34]} 21. Ncxd6 {[%emt 0:00:55]}
e4 {[%emt 0:06:08]} 22. Bd4 {[%emt 0:00:48]} exf3 {[%emt 0:01:12]} 23. Bxf3 {
[%emt 0:00:21]} Ndf6 {[%emt 0:11:56]} 24. Nxe8 {[%emt 0:00:14]} Qxe8 {[%emt 0:
00:00]} 25. Nd6 {[%emt 0:00:03]} Qd7 {[%emt 0:00:14]} 26. Nxc8 {[%emt 0:00:10]}
Qxc8 {[%emt 0:00:22]} 27. b5 {[%emt 0:02:27]} Qc4 {[%emt 0:01:23]} 28. b6 {
[%emt 0:00:19]} h4 {[%emt 0:02:48]} 29. d6 {[%emt 0:01:17]} Qe6 {[%emt 0:01:32]
} 30. Bxb7 {[%emt 0:00:07]} Qxd6 {[%emt 0:01:22]} 31. Rxf5 {[%emt 0:02:08]} Ng4
{[%emt 0:01:05]} 32. Bd5+ {[%emt 0:00:04]} 1-0

[Event "44th Chess Olympiad Open 2022"]
[Site "Chennai"]
[Date "2022.08.03"]
[Round "6.69"]
[White "Etienne, Angelo"]
[Black "Mutabazi Hugues"]
[Result "1-0"]
[WhiteElo "2036"]
[BlackElo "1666"]
[Annotator "NA RC"]
[PlyCount "101"]
[EventDate "2022.??.??"]
[TimeControl "60"]

1. d4 {[%emt 0:00:24]} Nf6 {[%emt 0:00:24]} 2. c4 {[%emt 0:00:03]} e6 {[%emt 0:
00:00]} 3. Nf3 {[%emt 0:00:12]} Bb4+ {[%emt 0:00:05]} 4. Bd2 {[%emt 0:00:19]}
Qe7 {[%emt 0:00:50]} 5. Qb3 {[%emt 0:00:11]} a5 {[%emt 0:01:56]} 6. a3 {
[%emt 0:00:34]} Bxd2+ {[%emt 0:00:22]} 7. Nfxd2 {[%emt 0:00:03]} O-O {[%emt 0:
00:00]} 8. e3 {[%emt 0:00:17]} d5 {[%emt 0:01:31]} 9. Nc3 {[%emt 0:00:18]} c6 {
[%emt 0:00:23]} 10. Bd3 {[%emt 0:00:23]} Nbd7 {[%emt 0:00:40]} 11. O-O {
[%emt 0:00:15]} dxc4 {[%emt 0:06:20]} 12. Nxc4 {[%emt 0:00:03]} c5 {[%emt 0:00:
00]} 13. Nb5 {[%emt 0:00:24]} cxd4 {[%emt 0:00:30]} 14. exd4 {[%emt 0:00:02]}
Nd5 {[%emt 0:01:30]} 15. Rae1 {[%emt 0:00:46]} Qd8 {[%emt 0:01:08]} 16. Be4 {
[%emt 0:02:04]} N7f6 {[%emt 0:01:45]} 17. Bxd5 {[%emt 0:02:19]} Nxd5 {[%emt 0:
00:00]} 18. Ncd6 {[%emt 0:00:43]} Qb6 {[%emt 0:01:34]} 19. Nc4 {[%emt 0:01:35]}
Qa6 {[%emt 0:01:19]} 20. Ne3 {[%emt 0:00:33]} a4 {[%emt 0:03:47]} 21. Qd3 {
[%emt 0:00:08]} Nxe3 {[%emt 0:00:11]} 22. Rxe3 {[%emt 0:00:05]} Bd7 {[%emt 0:
00:00]} 23. Nc3 {[%emt 0:02:15]} Qxd3 {[%emt 0:01:35]} 24. Rxd3 {[%emt 0:00:01]
} Bc6 {[%emt 0:00:34]} 25. f3 {[%emt 0:00:28]} Rfd8 {[%emt 0:00:34]} 26. Kf2 {
[%emt 0:00:09]} Rd7 {[%emt 0:01:24]} 27. Rfd1 {[%emt 0:00:20]} Rad8 {[%emt 0:
00:00]} 28. g3 {[%emt 0:00:42]} Kf8 {[%emt 0:00:13]} 29. Ke3 {[%emt 0:00:22]}
Ke7 {[%emt 0:01:13]} 30. f4 {[%emt 0:02:33]} f6 {[%emt 0:03:15]} 31. f5 {
[%emt 0:00:17]} Rd6 {[%emt 0:01:59]} 32. fxe6 {[%emt 0:01:26]} Rxe6+ {[%emt 0:
00:00]} 33. Kf2 {[%emt 0:00:20]} Red6 {[%emt 0:03:48]} 34. Re1+ {[%emt 0:00:37]
} Kf8 {[%emt 0:00:49]} 35. d5 {[%emt 0:00:20]} Be8 {[%emt 0:03:56]} 36. Rd2 {
[%emt 0:00:53]} Bf7 {[%emt 0:00:52]} 37. Re4 {[%emt 0:00:22]} b5 {[%emt 0:00:
00]} 38. Ke3 {[%emt 0:01:08]} Rb8 {[%emt 0:04:32]} 39. Rb4 {[%emt 0:00:37]}
Rdb6 {[%emt 0:00:19]} 40. Kd4 {[%emt 0:00:22]} Ke7 {[%emt 0:01:03]} 41. Kc5 {
[%emt 0:30:45]} R6b7 {[%emt 0:32:36]} 42. Rxb5 {[%emt 0:00:21]} Rc8+ {[%emt 0:
00:00]} 43. Kb4 {[%emt 0:00:30]} Rxb5+ {[%emt 0:00:56]} 44. Nxb5 {[%emt 0:00:
00]} Be8 {[%emt 0:01:28]} 45. Re2+ {[%emt 0:01:37]} Kd8 {[%emt 0:04:09]} 46.
Rxe8+ {[%emt 0:00:22]} Kxe8 {[%emt 0:01:01]} 47. Nd6+ {[%emt 0:00:02]} Kd7 {
[%emt 0:00:02]} 48. Nxc8 {[%emt 0:00:01]} Kxc8 {[%emt 0:00:02]} 49. Kxa4 {
[%emt 0:00:02]} f5 {[%emt 0:01:02]} 50. h4 {[%emt 0:00:11]} h6 {[%emt 0:00:02]}
51. h5 {[%emt 0:00:02]} 1-0

[Event "44th Chess Olympiad Open 2022"]
[Site "Chennai"]
[Date "2022.08.03"]
[Round "6.69"]
[White "Muheto, Dieudonne"]
[Black "Jean Louis, Marckens"]
[Result "1/2-1/2"]
[WhiteElo "1830"]
[BlackElo "2050"]
[Annotator "NA RC"]
[PlyCount "160"]
[EventDate "2022.??.??"]
[TimeControl "60"]

1. f4 {[%emt 0:00:12]} d5 {[%emt 0:01:27]} 2. Nf3 {[%emt 0:00:10]} c5 {[%emt 0:
00:00]} 3. e3 {[%emt 0:00:37]} Nc6 {[%emt 0:00:31]} 4. Bb5 {[%emt 0:00:13]} a6
{[%emt 0:02:08]} 5. Bxc6+ {[%emt 0:04:11]} bxc6 {[%emt 0:00:05]} 6. Ne5 {
[%emt 0:00:57]} Qc7 {[%emt 0:00:49]} 7. b3 {[%emt 0:00:19]} g6 {[%emt 0:01:44]}
8. Bb2 {[%emt 0:01:16]} Nf6 {[%emt 0:01:40]} 9. O-O {[%emt 0:00:08]} Bg7 {
[%emt 0:02:56]} 10. d3 {[%emt 0:00:17]} O-O {[%emt 0:00:53]} 11. Nd2 {[%emt 0:
00:00]} Nd7 {[%emt 0:03:16]} 12. Ndf3 {[%emt 0:00:43]} f6 {[%emt 0:00:31]} 13.
Ng4 {[%emt 0:03:38]} Nb6 {[%emt 0:01:48]} 14. Nf2 {[%emt 0:00:38]} Rb8 {
[%emt 0:03:11]} 15. h4 {[%emt 0:02:40]} h5 {[%emt 0:04:20]} 16. a4 {[%emt 0:00:
00]} Bd7 {[%emt 0:01:28]} 17. Qe2 {[%emt 0:01:26]} Rbe8 {[%emt 0:06:52]} 18.
Ba3 {[%emt 0:02:53]} d4 {[%emt 0:11:21]} 19. exd4 {[%emt 0:05:48]} Qxf4 {
[%emt 0:00:00]} 20. Qe4 {[%emt 0:04:43]} Qxe4 {[%emt 0:00:00]} 21. Nxe4 {
[%emt 0:00:31]} cxd4 {[%emt 0:00:21]} 22. Nc5 {[%emt 0:01:17]} Bc8 {[%emt 0:00:
00]} 23. Rae1 {[%emt 0:00:17]} e5 {[%emt 0:00:49]} 24. Ne4 {[%emt 0:00:40]} Nd5
{[%emt 0:04:18]} 25. Nd6 {[%emt 0:05:41]} Re6 {[%emt 0:02:30]} 26. Nxc8 {
[%emt 0:00:16]} Rxc8 {[%emt 0:00:08]} 27. Nxd4 {[%emt 0:00:14]} Ree8 {[%emt 0:
00:00]} 28. Nf3 {[%emt 0:00:59]} c5 {[%emt 0:00:35]} 29. Nd2 {[%emt 0:00:31]}
Nb4 {[%emt 0:04:42]} 30. Bxb4 {[%emt 0:00:21]} cxb4 {[%emt 0:00:03]} 31. Nc4 {
[%emt 0:00:11]} Rc6 {[%emt 0:00:28]} 32. Re2 {[%emt 0:01:36]} Rd8 {[%emt 0:00:
00]} 33. Rfe1 {[%emt 0:04:08]} Bf8 {[%emt 0:02:32]} 34. Na5 {[%emt 0:02:25]}
Rc7 {[%emt 0:01:59]} 35. Rf1 {[%emt 0:00:52]} Kg7 {[%emt 0:00:42]} 36. g3 {
[%emt 0:00:32]} Bc5+ {[%emt 0:03:46]} 37. Kg2 {[%emt 0:01:24]} Bd4 {[%emt 0:00:
00]} 38. Nc4 {[%emt 0:00:54]} Rc6 {[%emt 0:00:53]} 39. Kh3 {[%emt 0:00:51]} Kh6
{[%emt 0:01:44]} 40. Rfe1 {[%emt 0:02:15]} Rd5 {[%emt 0:01:43]} 41. Rf1 {
[%emt 0:33:28]} Kg7 {[%emt 0:33:50]} 42. Kg2 {[%emt 0:00:26]} f5 {[%emt 0:00:
00]} 43. Rfe1 {[%emt 0:01:25]} Kf6 {[%emt 0:00:22]} 44. Kh3 {[%emt 0:00:46]}
Rdc5 {[%emt 0:02:06]} 45. Rf1 {[%emt 0:00:50]} g5 {[%emt 0:02:32]} 46. hxg5+ {
[%emt 0:02:11]} Kxg5 {[%emt 0:00:04]} 47. Kg2 {[%emt 0:00:21]} Rh6 {[%emt 0:00:
00]} 48. Rh1 {[%emt 0:00:21]} Rg6 {[%emt 0:02:03]} 49. Nd2 {[%emt 0:00:56]} Bc3
{[%emt 0:01:46]} 50. Nf3+ {[%emt 0:02:51]} Kh6 {[%emt 0:00:04]} 51. Nh4 {
[%emt 0:05:40]} Rg5 {[%emt 0:00:26]} 52. Kh3 {[%emt 0:09:52]} Bd4 {[%emt 0:00:
00]} 53. Rf1 {[%emt 0:02:31]} Bb2 {[%emt 0:11:35]} 54. Nxf5+ {[%emt 0:02:53]}
Kh7 {[%emt 0:01:07]} 55. Nd6 {[%emt 0:01:43]} Rc6 {[%emt 0:00:53]} 56. Ne4 {
[%emt 0:01:02]} Rg7 {[%emt 0:00:00]} 57. Rf6 {[%emt 0:00:00]} Rxf6 {[%emt 0:00:
00]} 58. Nxf6+ {[%emt 0:00:00]} Kg6 {[%emt 0:00:00]} 59. Ne4 {[%emt 0:00:00]}
Bd4 {[%emt 0:00:00]} 60. Nd2 {[%emt 0:00:00]} Rf7 {[%emt 0:00:00]} 61. Kg2 {
[%emt 0:00:00]} Kf5 {[%emt 0:00:00]} 62. Ne4 {[%emt 0:00:00]} Rc7 {[%emt 0:00:
00]} 63. Nd6+ {[%emt 0:00:00]} Ke6 {[%emt 0:00:00]} 64. Nc4 {[%emt 0:00:00]}
Rf7 {[%emt 0:00:00]} 65. Nd2 {[%emt 0:00:00]} Rf5 {[%emt 0:06:51]} 66. Nf3 {
[%emt 0:00:00]} Bc3 {[%emt 0:01:12]} 67. d4 {[%emt 0:00:00]} Kd5 {[%emt 0:00:
00]} 68. dxe5 {[%emt 0:00:00]} Bxe5 {[%emt 0:00:00]} 69. Rd2+ {[%emt 0:05:36]}
Ke4 70. Nxe5 {[%emt 0:00:00]} Kxe5 {[%emt 0:00:00]} 71. Rd8 {[%emt 0:00:00]} a5
{[%emt 0:00:00]} 72. Rc8 {[%emt 0:03:16]} Kd4 {[%emt 0:00:36]} 73. Rc4+ {
[%emt 0:00:35]} Ke3 {[%emt 0:00:00]} 74. Kh3 {[%emt 0:01:31]} Kd2 {[%emt 0:00:
00]} 75. Kh4 {[%emt 0:00:44]} Re5 {[%emt 0:00:00]} 76. Rc7 {[%emt 0:02:35]} Rf5
{[%emt 0:00:00]} 77. Kh3 {[%emt 0:02:51]} Re5 {[%emt 0:00:00]} 78. Kg2 {
[%emt 0:00:14]} Rf5 {[%emt 0:00:00]} 79. Rc4 {[%emt 0:01:12]} Re5 {[%emt 0:00:
00]} 80. Rc6 {[%emt 0:03:33]} Rf5 {[%emt 0:06:07]} 1/2-1/2

[Event "44th Chess Olympiad Open 2022"]
[Site "Chennai"]
[Date "2022.08.03"]
[Round "6.69"]
[White "Elvis Havyarimana"]
[Black "Germinal, Kemly"]
[Result "0-1"]
[WhiteElo "1724"]
[BlackElo "1997"]
[Annotator "NA RC"]
[PlyCount "114"]
[EventDate "2022.??.??"]
[TimeControl "60"]

1. d4 {[%emt 0:00:01]} Nf6 {[%emt 0:00:16]} 2. c4 {[%emt 0:00:12]} c5 {[%emt 0:
00:00]} 3. d5 {[%emt 0:00:16]} e6 {[%emt 0:00:13]} 4. Nc3 {[%emt 0:00:02]} exd5
{[%emt 0:00:06]} 5. cxd5 {[%emt 0:00:09]} d6 {[%emt 0:00:22]} 6. e4 {[%emt 0:
00:00]} g6 {[%emt 0:00:54]} 7. f4 {[%emt 0:02:27]} Bg7 {[%emt 0:00:00]} 8. Nf3
{[%emt 0:00:10]} O-O {[%emt 0:00:52]} 9. Bd3 {[%emt 0:00:14]} Bg4 {[%emt 0:00:
00]} 10. O-O {[%emt 0:00:19]} Na6 {[%emt 0:00:37]} 11. a3 {[%emt 0:00:24]} Nc7
{[%emt 0:00:22]} 12. h3 {[%emt 0:00:20]} Bxf3 {[%emt 0:00:20]} 13. Qxf3 {
[%emt 0:00:10]} a6 {[%emt 0:00:41]} 14. Bd2 {[%emt 0:06:20]} b5 {[%emt 0:00:37]
} 15. Rae1 {[%emt 0:02:09]} Rb8 {[%emt 0:04:21]} 16. Ne2 {[%emt 0:11:35]} Qd7 {
[%emt 0:17:36]} 17. Bc2 {[%emt 0:04:13]} b4 {[%emt 0:02:37]} 18. axb4 {[%emt 0:
00:00]} cxb4 {[%emt 0:00:09]} 19. Be3 {[%emt 0:03:25]} a5 {[%emt 0:03:09]} 20.
Nd4 {[%emt 0:03:12]} a4 {[%emt 0:01:32]} 21. Nc6 {[%emt 0:03:53]} b3 {[%emt 0:
00:00]} 22. Nxb8 {[%emt 0:02:35]} Rxb8 {[%emt 0:00:08]} 23. Bd3 {[%emt 0:01:58]
} Ra8 {[%emt 0:00:44]} 24. Bd4 {[%emt 0:07:04]} Nb5 {[%emt 0:06:31]} 25. Bxf6 {
[%emt 0:06:19]} Bxf6 {[%emt 0:00:07]} 26. e5 {[%emt 0:00:10]} Bg7 {[%emt 0:00:
00]} 27. Qe4 {[%emt 0:14:49]} Nc7 {[%emt 0:03:19]} 28. f5 {[%emt 0:02:41]} Bxe5
{[%emt 0:01:31]} 29. Re2 {[%emt 0:05:36]} Ne8 {[%emt 0:15:23]} 30. fxg6 {
[%emt 0:00:46]} fxg6 {[%emt 0:00:48]} 31. Ref2 {[%emt 0:06:06]} Ng7 {[%emt 0:
00:00]} 32. Kh1 {[%emt 0:00:10]} Nh5 {[%emt 0:00:48]} 33. Rf3 {[%emt 0:05:06]}
Ng3+ {[%emt 0:04:53]} 34. Rxg3 {[%emt 0:00:08]} Bxg3 {[%emt 0:00:05]} 35. Qe6+
{[%emt 0:02:52]} Qxe6 {[%emt 0:00:08]} 36. dxe6 {[%emt 0:00:02]} Rf8 {[%emt 0:
00:00]} 37. Rxf8+ {[%emt 0:01:41]} Kxf8 {[%emt 0:01:37]} 38. Bb5 {[%emt 0:00:
00]} Ke7 {[%emt 0:00:10]} 39. Bxa4 {[%emt 0:00:19]} Kxe6 {[%emt 0:00:06]} 40.
Bxb3+ {[%emt 0:00:15]} Ke5 {[%emt 0:00:24]} 41. Bg8 {[%emt 0:30:44]} h6 {
[%emt 0:30:57]} 42. Kg1 {[%emt 0:00:24]} d5 {[%emt 0:02:09]} 43. Kf1 {[%emt 0:
00:00]} Kd4 {[%emt 0:01:16]} 44. Ke2 {[%emt 0:01:38]} Be5 {[%emt 0:00:27]} 45.
Bf7 {[%emt 0:01:02]} g5 {[%emt 0:00:15]} 46. Kf3 {[%emt 0:01:47]} Kc4 {[%emt 0:
00:00]} 47. b3+ {[%emt 0:00:47]} Kd4 {[%emt 0:00:09]} 48. Kg4 {[%emt 0:01:06]}
Ke4 {[%emt 0:00:38]} 49. Kh5 {[%emt 0:00:23]} Bg7 {[%emt 0:00:58]} 50. b4 {
[%emt 0:00:49]} d4 {[%emt 0:05:24]} 51. b5 {[%emt 0:00:26]} d3 {[%emt 0:01:23]}
52. b6 {[%emt 0:00:14]} d2 {[%emt 0:00:53]} 53. Bb3 {[%emt 0:00:02]} Kf4 {
[%emt 0:01:56]} 54. b7 {[%emt 0:03:22]} Be5 {[%emt 0:00:22]} 55. Bd1 {[%emt 0:
00:00]} Kg3 {[%emt 0:00:31]} 56. Bf3 {[%emt 0:00:15]} Bf4 {[%emt 0:00:34]} 57.
Kxh6 {[%emt 0:00:37]} g4+ {[%emt 0:00:00]} 0-1